fUSD/lending_fUSD_20260624
["ID","MTS","AMOUNT","RATE_DAILY","PERIOD"]
[426318032,1782297033000,-500.0,0.00014999,2]
[426318039,1782297033000,-500.0,0.00014999,2]
[426318041,1782297033000,-500.0,0.00014999,2]
[426318042,1782297033000,-500.0,0.00014999,2]
[426318045,1782297033000,-1051.9463318,0.00014999,2]
[426318044,1782297033000,-922.8573055,0.00014999,2]
[426318026,1782297033000,-502.33292252,0.00014999,2]
[426318034,1782297033000,-1277.0863477,0.00014999,2]
[426318024,1782297033000,-7383.9994493,0.00014999,2]
[426317996,1782297033000,-223.93963107,0.000149,2]
[426318015,1782297033000,-221.35471241,0.00014998,2]
[426318043,1782297033000,-500.0,0.00014999,2]
[426317992,1782297033000,-1192.19782255,0.000149,2]
[426317994,1782297033000,-1243.47297189,0.000149,2]
[426317998,1782297033000,-452.37,0.0001497,2]
[426318001,1782297033000,-280.39,0.00014985,2]
[426318003,1782297033000,-261.5,0.00014985,2]
[426318005,1782297033000,-500.0,0.00014985,2]
[426318022,1782297033000,-30437.3178073,0.00014999,2]
[426318007,1782297033000,-1907.869,0.00014986,2]
[426318014,1782297033000,-500.0,0.00014998,2]
[426318020,1782297033000,-1058.6525157,0.00014999,2]
[426318016,1782297033000,-6850.9606495,0.00014999,2]
[426318013,1782297033000,-1000.0,0.00014997,2]
[426318012,1782297033000,-151.0,0.00014997,2]
[426318011,1782297033000,-281.72614084,0.0001499,2]
[426318018,1782297033000,-259.85472851,0.00014999,2]
[426318009,1782297033000,-158.527,0.00014986,2]
[426318046,1782297033000,-500.0,0.00014999,2]
[426318080,1782297033000,-3237.43340902,0.00015,2]
[426318048,1782297033000,-500.0,0.00014999,2]
[426318070,1782297033000,-172.0,0.00014999,2]
[426318068,1782297033000,-500.0,0.00014999,2]
[426318071,1782297033000,-500.0,0.00014999,2]
[426318076,1782297033000,-500.0,0.00014999,2]
[426318075,1782297033000,-500.0,0.00014999,2]
[426318073,1782297033000,-500.0,0.00014999,2]
[426318074,1782297033000,-500.0,0.00014999,2]
[426318069,1782297033000,-500.0,0.00014999,2]
[426318082,1782297033000,-605.97758395,0.00015,2]
[426318072,1782297033000,-500.0,0.00014999,2]
[426318078,1782297033000,-269.74935758,0.00014999,2]
[426318081,1782297033000,-9296.08901886,0.00015,2]
[426318079,1782297033000,-180247.03155443,0.00015,2]
[426318083,1782297033000,-509.95373544,0.00015,2]
[426318085,1782297033000,-500.91157275,0.00015,2]
[426318047,1782297033000,-500.0,0.00014999,2]
[426318077,1782297033000,-500.0,0.00014999,2]
[426318067,1782297033000,-500.0,0.00014999,2]
[426318084,1782297033000,-502.87462798,0.00015,2]
[426318065,1782297033000,-1000.0,0.00014999,2]
[426318066,1782297033000,-500.0,0.00014999,2]
[426318051,1782297033000,-500.0,0.00014999,2]
[426318050,1782297033000,-500.0,0.00014999,2]
[426318049,1782297033000,-500.0,0.00014999,2]
[426318052,1782297033000,-543.97,0.00014999,2]
[426318059,1782297033000,-500.0,0.00014999,2]
[426318054,1782297033000,-500.0,0.00014999,2]
[426318058,1782297033000,-500.0,0.00014999,2]
[426318056,1782297033000,-500.0,0.00014999,2]
[426318055,1782297033000,-500.0,0.00014999,2]
[426318053,1782297033000,-7907.3562731,0.00014999,2]
[426318057,1782297033000,-500.0,0.00014999,2]
[426318061,1782297033000,-500.0,0.00014999,2]
[426318060,1782297033000,-500.0,0.00014999,2]
[426318063,1782297033000,-500.0,0.00014999,2]
[426318062,1782297033000,-500.0,0.00014999,2]
[426318064,1782297033000,-500.0,0.00014999,2]
[426318093,1782297040000,-389.6310882,0.00015,2]
[426318094,1782297040000,-220147.97475227,0.00015,2]
[426318097,1782297040000,-9522.75246309,0.00015,2]
[426318095,1782297040000,-1214.19,0.00015,2]
[426318096,1782297040000,-4533037.36739068,0.00015,2]
[426318135,1782297041000,-185.22,0.00016291,2]
[426318138,1782297041000,-185.23,0.00016294,2]
[426318147,1782297041000,-644.38,0.00016393,2]
[426318140,1782297041000,-185.23,0.00016304,2]
[426318148,1782297041000,-185.22,0.00016393,2]
[426318141,1782297041000,-1229.0,0.00016377,2]
[426318143,1782297041000,-6139.779,0.00016377,2]
[426318134,1782297041000,-10182.02673358,0.000162,2]
[426318142,1782297041000,-3562.0,0.00016377,2]
[426318145,1782297041000,-185.22,0.00016391,2]
[426318144,1782297041000,-396.34,0.00016391,2]
[426318146,1782297041000,-185.22,0.00016391,2]
[426318159,1782297041000,-171.43,0.00016712,2]
[426318150,1782297041000,-185.22,0.00016393,2]
[426318153,1782297041000,-1003.2,0.00016438,2]
[426318154,1782297041000,-262.68209022,0.00016448,2]
[426318157,1782297041000,-900.0,0.00016618,2]
[426318162,1782297041000,-500.0,0.00016965,2]
[426318151,1782297041000,-400.0,0.000164,2]
[426318158,1782297041000,-10182.02673358,0.000167,2]
[426318152,1782297041000,-10182.02673358,0.000164,2]
[426318155,1782297041000,-500.0,0.00016471,2]
[426318156,1782297041000,-10182.02673358,0.000166,2]
[426318161,1782297041000,-10182.02673358,0.000169,2]
[426318160,1782297041000,-151.0,0.00016776,2]
[426318149,1782297041000,-185.22,0.00016393,2]
[426318125,1782297041000,-1192.19782251,0.00016043,2]
[426318105,1782297041000,-900.0,0.00015248,2]
[426318126,1782297041000,-400.0,0.000161,2]
[426318098,1782297041000,-77414.79028413,0.00015,2]
[426318101,1782297041000,-172.0,0.00015,2]
[426318100,1782297041000,-1000.0,0.00015,2]
[426318099,1782297041000,-200.0,0.00015,2]
[426318111,1782297041000,-400.0,0.000158,2]
[426318110,1782297041000,-500.0,0.00015712,2]
[426318104,1782297041000,-10000.0,0.00015225,2]
[426318103,1782297041000,-150.0,0.00015068,2]
[426318107,1782297041000,-253.43,0.00015498,2]
[426318108,1782297041000,-500.0,0.00015525,2]
[426318102,1782297041000,-172.49953064,0.00015,2]
[426318109,1782297041000,-2000.0,0.00015676,2]
[426318106,1782297041000,-10000.0,0.00015331,2]
[426318112,1782297041000,-10182.02673358,0.000158,2]
[426318113,1782297041000,-562.0,0.00015889,5]
[426318115,1782297041000,-421.0,0.00015889,5]
[426318114,1782297041000,-449.0,0.00015889,5]
[426318119,1782297041000,-400.0,0.000159,2]
[426318121,1782297041000,-10182.02673358,0.000159,2]
[426318123,1782297041000,-500.0,0.00015991,2]
[426318124,1782297041000,-300.0,0.00016,2]
[426318132,1782297041000,-644.0,0.000161,2]
[426318130,1782297041000,-202.0,0.000161,2]
[426318128,1782297041000,-316.0,0.000161,2]
[426318127,1782297041000,-10182.02673358,0.000161,2]
[426318133,1782297041000,-400.0,0.000162,2]
[426318173,1782297041000,-10182.02673358,0.000171,2]
[426318131,1782297041000,-310.0,0.000161,2]
[426318163,1782297041000,-158644.067764,0.00017069,2]
[426318194,1782297041000,-482.1,0.00017116,2]
[426318198,1782297041000,-1192.19782251,0.00017186,2]
[426318195,1782297041000,-644.38,0.00017116,2]
[426318196,1782297041000,-396.32,0.00017126,2]
[426318197,1782297041000,-573.72,0.00017134,2]
[426318202,1782297041000,-396.34,0.00017213,2]
[426318212,1782297041000,-396.32,0.00017215,2]
[426318201,1782297041000,-482.46,0.00017213,2]
[426318204,1782297041000,-396.32,0.00017213,2]
[426318203,1782297041000,-644.38,0.00017213,2]
[426318205,1782297041000,-396.32,0.00017213,2]
[426318208,1782297041000,-396.32,0.00017215,2]
[426318206,1782297041000,-396.86,0.00017215,2]
[426318207,1782297041000,-303.53,0.00017215,2]
[426318209,1782297041000,-396.32,0.00017215,2]
[426318210,1782297041000,-482.46,0.00017215,2]
[426318211,1782297041000,-644.38,0.00017215,2]
[426318214,1782297041000,-253.43,0.0001722,2]
[426318213,1782297041000,-482.46,0.00017215,2]
[426318215,1782297041000,-10182.02673358,0.000174,2]
[426318218,1782297041000,-77394.93075464,0.00017573,2]
[426318219,1782297041000,-452.91970207,0.00017573,2]
[426318220,1782297041000,-256.73781653,0.00017573,2]
[426318217,1782297041000,-499.45975876,0.00017474,2]
[426318216,1782297041000,-933.73010321,0.00017402,2]
[426318199,1782297041000,-10182.02673358,0.000172,2]
[426318193,1782297041000,-185.23,0.00017116,2]
[426318175,1782297041000,-2000.0,0.000171,2]
[426318191,1782297041000,-644.38,0.00017116,2]
[426318189,1782297041000,-644.38,0.00017116,2]
[426318174,1782297041000,-1214.19,0.000171,2]
[426318165,1782297041000,-150.0,0.00017073,2]
[426318167,1782297041000,-150.0,0.00017073,2]
[426318166,1782297041000,-175.431,0.00017073,2]
[426318168,1782297041000,-150.0,0.00017073,2]
[426318170,1782297041000,-185.18,0.00017092,2]
[426318172,1782297041000,-246.28,0.00017097,2]
[426318171,1782297041000,-644.38,0.00017097,2]
[426318169,1782297041000,-482.46,0.00017089,2]
[426318177,1782297041000,-482.46,0.00017109,2]
[426318176,1782297041000,-185.22,0.00017109,2]
[426318178,1782297041000,-644.42,0.00017109,2]
[426318164,1782297041000,-299.0,0.00017073,2]
[426318188,1782297041000,-396.34,0.00017116,2]
[426318187,1782297041000,-644.38,0.00017116,2]
[426318192,1782297041000,-644.38,0.00017116,2]
[426318200,1782297041000,-482.46,0.00017213,2]
[426318190,1782297041000,-185.22,0.00017116,2]
[426318186,1782297041000,-185.22,0.00017116,2]
[426318183,1782297041000,-185.22,0.00017116,2]
[426318185,1782297041000,-644.42,0.00017116,2]
[426318184,1782297041000,-644.38,0.00017116,2]
[426318181,1782297041000,-644.38,0.00017113,2]
[426318180,1782297041000,-396.32,0.00017113,2]
[426318179,1782297041000,-576.33,0.00017109,2]
[426318182,1782297041000,-396.33,0.00017116,2]
[426318221,1782297042000,-1285.44660313,0.00017573,2]
[426318222,1782297042000,-3078.29313009,0.00017573,2]
[426318223,1782297042000,-1712.91496064,0.00017573,2]
[426318226,1782297042000,-2745.32459999,0.00017573,2]
[426318224,1782297042000,-1999.75260851,0.00017573,2]
[426318225,1782297042000,-1292.529697,0.00017573,2]
[426318227,1782297042000,-497.83192271,0.00017573,2]
[426318229,1782297042000,-2779.67957819,0.000176,2]
[426318230,1782297042000,-287.38555787,0.000176,2]
[426318228,1782297042000,-1528.74270619,0.00017573,2]
[426318246,1782297043000,-581.35287267,0.000176,2]
[426318245,1782297043000,-900.0,0.000176,2]
[426318243,1782297043000,-1562.5,0.000176,2]
[426318244,1782297043000,-432.6812014,0.000176,2]
[426318309,1782297046000,-200.0,0.00017823,2]
[426318306,1782297046000,-233.72,0.00017728,2]
[426318307,1782297046000,-2024.96,0.00017728,2]
[426318304,1782297046000,-150.99,0.00017728,2]
[426318305,1782297046000,-269.89,0.00017728,2]
[426318299,1782297046000,-760.52107881,0.00017608,2]
[426318301,1782297046000,-10182.02673358,0.000177,2]
[426318300,1782297046000,-5511.43046842,0.00017608,2]
[426318298,1782297046000,-3638.42752345,0.000176,2]
[426318312,1782297046000,-644.38,0.00017911,2]
[426318302,1782297046000,-1659.09,0.00017728,2]
[426318308,1782297046000,-299.99,0.00017728,4]
[426318303,1782297046000,-9999.99,0.00017728,2]
[426318311,1782297046000,-300.0,0.000179,6]
[426318310,1782297046000,-10182.02673358,0.000179,2]
[426318323,1782297046000,-396.32,0.00017938,2]
[426318322,1782297046000,-573.72,0.00017938,2]
[426318321,1782297046000,-396.32,0.00017938,2]
[426318318,1782297046000,-185.22,0.00017919,2]
[426318319,1782297046000,-644.42,0.00017931,2]
[426318320,1782297046000,-503.82888934,0.00017936,2]
[426318317,1782297046000,-396.32,0.00017919,2]
[426318316,1782297046000,-482.46,0.00017911,2]
[426318314,1782297046000,-396.32,0.00017911,2]
[426318315,1782297046000,-396.34,0.00017911,2]
[426318313,1782297046000,-482.46,0.00017911,2]
[426318372,1782297047000,-643.6,0.00018037,2]
[426318355,1782297047000,-201.53,0.00018,2]
[426318358,1782297047000,-339.82837,0.00018,2]
[426318356,1782297047000,-350.0,0.00018,2]
[426318357,1782297047000,-1566.10082128,0.00018,2]
[426318354,1782297047000,-10648.91705993,0.00018,2]
[426318361,1782297047000,-2110.75651116,0.00018018,2]
[426318360,1782297047000,-533.02946908,0.00018005,2]
[426318353,1782297047000,-2008.95107524,0.00018,2]
[426318364,1782297047000,-646.4,0.00018035,2]
[426318359,1782297047000,-631.32134948,0.00018,2]
[426318365,1782297047000,-185.22,0.00018035,2]
[426318371,1782297047000,-396.34,0.00018035,2]
[426318367,1782297047000,-573.69,0.00018035,2]
[426318363,1782297047000,-2110.75651116,0.0001802,2]
[426318362,1782297047000,-2110.75651116,0.00018018,2]
[426318369,1782297047000,-185.22,0.00018035,2]
[426318352,1782297047000,-178.85521149,0.00018,2]
[426318370,1782297047000,-482.46,0.00018035,2]
[426318368,1782297047000,-644.04,0.00018035,2]
[426318374,1782297047000,-396.34,0.00018037,2]
[426318386,1782297047000,-232.0,0.0001805,2]
[426318373,1782297047000,-644.38,0.00018037,2]
[426318385,1782297047000,-311.0,0.0001805,2]
[426318379,1782297047000,-396.32,0.00018037,2]
[426318366,1782297047000,-573.72,0.00018035,2]
[426318350,1782297047000,-170.3844487,0.00018,2]
[426318348,1782297047000,-170.92422301,0.00018,2]
[426318349,1782297047000,-172.88757979,0.00018,2]
[426318380,1782297047000,-482.48,0.00018037,2]
[426318324,1782297047000,-644.42,0.00017938,2]
[426318329,1782297047000,-573.72,0.00017938,2]
[426318325,1782297047000,-185.22,0.00017938,2]
[426318328,1782297047000,-644.38,0.00017938,2]
[426318327,1782297047000,-482.48,0.00017938,2]
[426318326,1782297047000,-396.32,0.00017938,2]
[426318330,1782297047000,-573.69,0.00017938,2]
[426318339,1782297047000,-802.07792907,0.0001797,2]
[426318331,1782297047000,-396.32,0.00017948,2]
[426318337,1782297047000,-151.0,0.00017967,2]
[426318334,1782297047000,-396.32,0.00017948,2]
[426318332,1782297047000,-644.38,0.00017948,2]
[426318333,1782297047000,-185.22,0.00017948,2]
[426318335,1782297047000,-573.72,0.00017956,2]
[426318338,1782297047000,-151.0,0.00017967,2]
[426318336,1782297047000,-3544.20045271,0.00017967,2]
[426318341,1782297047000,-2110.75651116,0.00017978,2]
[426318340,1782297047000,-2110.75651116,0.00017974,2]
[426318343,1782297047000,-533.02946908,0.00017992,2]
[426318342,1782297047000,-2110.75651116,0.00017988,2]
[426318344,1782297047000,-2110.75651116,0.00017995,2]
[426318345,1782297047000,-48341.30224454,0.00018,2]
[426318346,1782297047000,-169.87728653,0.00018,2]
[426318347,1782297047000,-217.03398204,0.00018,2]
[426318351,1782297047000,-207.60233451,0.00018,2]
[426318376,1782297047000,-396.32,0.00018037,2]
[426318395,1782297047000,-371.0,0.0001805,2]
[426318387,1782297047000,-1017.0,0.0001805,2]
[426318412,1782297047000,-533.02946908,0.00018134,2]
[426318414,1782297047000,-2110.75651116,0.0001814,2]
[426318415,1782297047000,-533.02946908,0.00018145,2]
[426318421,1782297047000,-169.87728653,0.000182,2]
[426318420,1782297047000,-533.02946908,0.0001818,2]
[426318417,1782297047000,-533.02946908,0.00018171,2]
[426318418,1782297047000,-2110.75651116,0.00018178,2]
[426318416,1782297047000,-1727.01690307,0.00018159,2]
[426318419,1782297047000,-2110.75651116,0.00018179,2]
[426318422,1782297047000,-217.03398204,0.000182,2]
[426318424,1782297047000,-172.88757979,0.000182,2]
[426318426,1782297047000,-207.60233451,0.000182,2]
[426318423,1782297047000,-170.92422301,0.000182,2]
[426318427,1782297047000,-178.85521149,0.000182,2]
[426318384,1782297047000,-2309.0,0.0001805,2]
[426318430,1782297047000,-1128.0,0.00018272,2]
[426318434,1782297047000,-169.87728653,0.000184,2]
[426318432,1782297047000,-1192.19782251,0.00018329,2]
[426318429,1782297047000,-10648.91705993,0.000182,2]
[426318431,1782297047000,-10182.02673358,0.000183,2]
[426318433,1782297047000,-90021.9,0.00018356,2]
[426318436,1782297047000,-172.88757979,0.000184,2]
[426318435,1782297047000,-170.92422301,0.000184,2]
[426318437,1782297047000,-178.85521149,0.000184,2]
[426318439,1782297047000,-10648.91705993,0.000184,2]
[426318438,1782297047000,-2008.95107524,0.000184,2]
[426318425,1782297047000,-170.3844487,0.000182,2]
[426318413,1782297047000,-10000.0,0.00018139,2]
[426318428,1782297047000,-2008.95107524,0.000182,2]
[426318410,1782297047000,-2110.75651116,0.00018117,2]
[426318407,1782297047000,-1727.01690307,0.00018115,2]
[426318378,1782297047000,-644.38,0.00018037,2]
[426318382,1782297047000,-1500.0,0.00018045,2]
[426318381,1782297047000,-396.32,0.00018037,2]
[426318377,1782297047000,-482.46,0.00018037,2]
[426318390,1782297047000,-217.10017775,0.0001805,3]
[426318400,1782297047000,-533.02946908,0.00018064,2]
[426318388,1782297047000,-335.0,0.0001805,2]
[426318399,1782297047000,-533.02946908,0.00018058,2]
[426318389,1782297047000,-358.0,0.0001805,2]
[426318398,1782297047000,-1555.0,0.0001805,2]
[426318394,1782297047000,-159.0,0.0001805,2]
[426318396,1782297047000,-501.0,0.0001805,2]
[426318391,1782297047000,-1675.0,0.0001805,2]
[426318402,1782297047000,-533.02946908,0.00018065,2]
[426318392,1782297047000,-155.0,0.0001805,2]
[426318397,1782297047000,-154.0,0.0001805,2]
[426318401,1782297047000,-533.02946908,0.00018064,2]
[426318403,1782297047000,-1727.01690307,0.00018071,2]
[426318405,1782297047000,-2110.75651116,0.00018091,2]
[426318404,1782297047000,-2110.75651116,0.00018082,2]
[426318406,1782297047000,-10182.02673358,0.000181,2]
[426318409,1782297047000,-2110.75651116,0.00018116,2]
[426318411,1782297047000,-2110.75651116,0.00018118,2]
[426318408,1782297047000,-2110.75651116,0.00018116,2]
[426318393,1782297047000,-722.0,0.0001805,2]
[426318469,1782297048000,-644.42,0.0001876,2]
[426318460,1782297048000,-482.46,0.00018741,2]
[426318473,1782297048000,-482.46,0.0001876,2]
[426318458,1782297048000,-573.35,0.00018736,2]
[426318462,1782297048000,-644.38,0.00018753,2]
[426318470,1782297048000,-396.33,0.0001876,2]
[426318461,1782297048000,-395.85,0.00018753,2]
[426318468,1782297048000,-644.16,0.0001876,2]
[426318465,1782297048000,-482.46,0.0001876,2]
[426318463,1782297048000,-396.34,0.00018757,2]
[426318467,1782297048000,-482.46,0.0001876,2]
[426318466,1782297048000,-482.48,0.0001876,2]
[426318471,1782297048000,-185.23,0.0001876,2]
[426318459,1782297048000,-644.33,0.00018736,2]
[426318464,1782297048000,-396.34,0.00018757,2]
[426318453,1782297048000,-1214.19,0.000187,2]
[426318443,1782297048000,-172.88757979,0.000185,2]
[426318449,1782297048000,-172.88757979,0.000187,2]
[426318478,1782297048000,-185.23,0.0001877,2]
[426318442,1782297048000,-2000.0,0.00018477,2]
[426318445,1782297048000,-10648.91705993,0.000185,2]
[426318440,1782297048000,-463.21717937,0.000184,2]
[426318444,1782297048000,-2008.95107524,0.000185,2]
[426318441,1782297048000,-1003.2,0.0001841,2]
[426318446,1782297048000,-10182.02673358,0.000185,2]
[426318448,1782297048000,-1555.5,0.00018593,2]
[426318452,1782297048000,-10182.02673358,0.000187,2]
[426318451,1782297048000,-10648.91705993,0.000187,2]
[426318456,1782297048000,-573.72,0.00018733,2]
[426318447,1782297048000,-500.0,0.00018513,2]
[426318455,1782297048000,-396.34,0.00018733,2]
[426318457,1782297048000,-574.14,0.00018733,2]
[426318450,1782297048000,-2008.95107524,0.000187,2]
[426318454,1782297048000,-482.46,0.00018733,2]
[426318477,1782297048000,-644.38,0.0001877,2]
[426318498,1782297048000,-10648.91705993,0.000189,2]
[426318475,1782297048000,-396.32,0.0001876,2]
[426318501,1782297048000,-297.12260862,0.00018998,2]
[426318497,1782297048000,-2008.95107524,0.000189,2]
[426318500,1782297048000,-253.43,0.00018942,2]
[426318494,1782297048000,-396.32,0.00018859,2]
[426318503,1782297048000,-160.0,0.00019,2]
[426318499,1782297048000,-1243.47297189,0.000189,2]
[426318496,1782297048000,-644.38,0.00018859,2]
[426318502,1782297048000,-5176.25753282,0.00019,2]
[426318508,1782297048000,-4545.30931694,0.00019,2]
[426318504,1782297048000,-3787.26357724,0.00019,2]
[426318505,1782297048000,-10182.02673358,0.00019,2]
[426318509,1782297048000,-1865.92,0.00019,2]
[426318506,1782297048000,-77936.13500378,0.00019,2]
[426318510,1782297048000,-3920.94958382,0.00019,2]
[426318482,1782297048000,-10182.02673358,0.000188,2]
[426318495,1782297048000,-482.48,0.00018859,2]
[426318511,1782297048000,-933.17288362,0.00019,2]
[426318507,1782297048000,-2737.719,0.00019,2]
[426318485,1782297048000,-396.34,0.00018857,2]
[426318476,1782297048000,-573.69,0.0001877,2]
[426318474,1782297048000,-482.46,0.0001876,2]
[426318481,1782297048000,-644.38,0.00018778,2]
[426318479,1782297048000,-482.46,0.0001877,2]
[426318480,1782297048000,-482.46,0.0001877,2]
[426318483,1782297048000,-396.32,0.00018857,2]
[426318493,1782297048000,-185.24,0.00018859,2]
[426318472,1782297048000,-482.48,0.0001876,2]
[426318490,1782297048000,-575.97,0.00018857,2]
[426318492,1782297048000,-573.69,0.00018859,2]
[426318484,1782297048000,-482.48,0.00018857,2]
[426318488,1782297048000,-482.46,0.00018857,2]
[426318487,1782297048000,-644.38,0.00018857,2]
[426318489,1782297048000,-482.48,0.00018857,2]
[426318491,1782297048000,-396.32,0.00018857,2]
[426318486,1782297048000,-573.69,0.00018857,2]
[426318512,1782297114000,-716.796709,0.00014,2]
[426318513,1782297168000,-3078.29313009,0.00014468,2]
[426318514,1782297190000,-1285.44660313,0.00014468,2]
[426318515,1782297212000,-500.0,0.00014467,2]
[426318516,1782297262000,-271.72419546,0.00013444,7]
[426318517,1782297315000,-407.58629323,0.00014235,7]
[426318518,1782297368000,-511.70444409,0.00014466,2]
[426318519,1782297422000,-1999.75260851,0.00014368,2]
[426318520,1782297442000,-500.24739149,0.00014368,2]
[426318535,1782297816000,-153.0,0.00014131,2]
[426318537,1782297895000,-56000.0,0.00023,30]
[426318539,1782297987000,2000.0,0.00028767,120]
[426318542,1782298131000,2000.0,0.00028767,120]
[426318546,1782298184000,-159.55,0.00011353,2]
[426318550,1782298237000,-181.42,0.00013382,2]
[426318556,1782298239000,-195.65811609,0.0001395,2]
[426318551,1782298239000,888.0,0.00028767,120]
[426318553,1782298239000,-202.08757217,0.000139,2]
[426318554,1782298239000,-300.0,0.00013925,2]
[426318555,1782298239000,-404.34188391,0.0001395,2]
[426318559,1782298239000,-300.0,0.00013974,2]
[426318561,1782298239000,-293.30864641,0.00013974,2]
[426318578,1782298239000,-151.0,0.00014,2]
[426318573,1782298239000,-152.0,0.00014,2]
[426318564,1782298239000,-6.69135359,0.00013974,2]
[426318570,1782298239000,-250.0,0.00014,2]
[426318576,1782298239000,-150.0,0.00014,2]
[426318581,1782298239000,-151.0,0.00014,2]
[426318567,1782298239000,-300.0,0.00013974,2]
[426318616,1782298240000,-152.0,0.00014468,2]
[426318610,1782298240000,-4126.52,0.00014429,2]
[426318611,1782298240000,-309.0,0.00014466,2]
[426318614,1782298240000,-5818.02365502,0.00014467,2]
[426318615,1782298240000,-151.0,0.00014467,2]
[426318609,1782298240000,-2500.0,0.00014368,2]
[426318618,1782298240000,-150.0,0.00014468,2]
[426318613,1782298240000,-265.0,0.00014466,2]
[426318612,1782298240000,-321.0,0.00014466,2]
[426318619,1782298240000,-151.0,0.00014468,2]
[426318629,1782298240000,-500.0,0.00014999,2]
[426318620,1782298240000,-151.0,0.00014468,2]
[426318608,1782298240000,-31570.1923,0.00014368,2]
[426318626,1782298240000,-500.0,0.00014998,2]
[426318621,1782298240000,-163.25,0.00014571,2]
[426318623,1782298240000,-163.25,0.00014872,2]
[426318622,1782298240000,-1407.68,0.0001472,2]
[426318625,1782298240000,-500.0,0.00014998,2]
[426318628,1782298240000,-500.0,0.00014999,2]
[426318627,1782298240000,-500.0,0.00014999,2]
[426318630,1782298240000,-500.0,0.00014999,2]
[426318617,1782298240000,-151.0,0.00014468,2]
[426318624,1782298240000,-500.0,0.00014998,2]
[426318601,1782298240000,-151.0,0.00014277,2]
[426318606,1782298240000,-1033.31351895,0.00014367,2]
[426318583,1782298240000,-151.0,0.00014,2]
[426318584,1782298240000,-216.42324807,0.00014,2]
[426318586,1782298240000,-600.0,0.00014017,2]
[426318585,1782298240000,-600.0,0.00014017,2]
[426318587,1782298240000,-600.0,0.00014017,2]
[426318588,1782298240000,-319.0,0.00014017,2]
[426318590,1782298240000,-151.0,0.00014166,2]
[426318589,1782298240000,-268.63747279,0.000141,2]
[426318591,1782298240000,-158.64,0.00014169,2]
[426318593,1782298240000,-150.0,0.00014193,2]
[426318607,1782298240000,-160.55251234,0.00014368,2]
[426318592,1782298240000,-150.0,0.00014193,2]
[426318595,1782298240000,-291.70918599,0.00014193,2]
[426318597,1782298240000,-622.8128809,0.00014268,2]
[426318596,1782298240000,-150.0,0.00014223,2]
[426318599,1782298240000,-163.25,0.00014271,2]
[426318603,1782298240000,-153.0,0.00014296,2]
[426318604,1782298240000,-12631.5,0.00014329,2]
[426318602,1782298240000,-234.82630527,0.00014295,2]
[426318600,1782298240000,-151.0,0.00014272,2]
[426318598,1782298240000,-262331.6585,0.00014268,2]
[426318605,1782298240000,-1407.68,0.00014361,2]
[426318594,1782298240000,-150.0,0.00014193,2]
[426318634,1782298240000,-500.0,0.00014999,2]
[426318663,1782298240000,-1229.0,0.00015697,2]
[426318631,1782298240000,-500.0,0.00014999,2]
[426318666,1782298240000,-2000.0,0.00015767,2]
[426318668,1782298240000,-1407.68,0.00015797,2]
[426318669,1782298240000,-500.0,0.00015799,2]
[426318671,1782298240000,-10336.89353894,0.000159,2]
[426318635,1782298240000,-500.0,0.00014999,2]
[426318673,1782298240000,-300.0,0.00016,2]
[426318670,1782298240000,-1067.63625987,0.00015885,2]